bitfinex-derivatives/quotes_ETHF0:USTF0_20251012
["timestamp","ask_amount","ask_price","bid_price","bid_amount"]
[1760238694555,0.3549,3757.5,3757.3,0.93885989]
[1760238694759,0.3549,3757.5,3757.1,0.93885989]
[1760238694944,0.1441,3758.3,3758.2,0.47852]
[1760238695147,0.499,3759.0,3758.9,0.47843]
[1760238695558,0.499,3759.0,3758.6,0.47846]
[1760238695753,0.3549,3758.9,3758.8,0.47843]
[1760238695947,0.1441,3759.7,3759.6,0.47834]
[1760238696159,0.4935,3759.7,3759.6,0.47834]
[1760238696956,3.8e-06,3760.0,3758.8,1.19609]
[1760238696957,3.8e-06,3760.0,3759.9,0.4783]
[1760238697260,3.8e-06,3760.0,3759.8,0.4783]
[1760238697759,0.1375,3759.7,3759.6,0.47834]
[1760238697952,0.1375,3759.7,3759.4,0.93885989]
[1760238698149,0.1375,3759.7,3759.5,0.47835]
[1760238698354,0.3494,3759.6,3759.5,0.47835]
[1760238698558,3.8e-06,3760.0,3759.9,0.4783]
[1760238698754,0.1375,3759.7,3759.6,0.47833]
[1760238699358,0.1375,3759.7,3759.2,1.40668118]
[1760238699359,0.3494,3759.6,3759.2,0.79209118]
[1760238699562,0.3494,3758.5,3758.2,1.84566115]
[1760238699761,0.3494,3759.4,3758.3,0.3423]
[1760238699966,0.3494038,3760.0,3759.4,0.47835]
[1760238700261,3.8e-06,3760.0,3759.1,0.79209118]
[1760238700470,3.8e-06,3760.0,3759.4,0.47835]
[1760238700665,0.61583,3759.7,3759.1,0.47839]
[1760238700865,0.47837,3759.4,3758.2,0.3423]
[1760238701067,0.47842,3759.0,3758.4,0.79209118]
[1760238701365,1.55795,3759.6,3758.2,0.79209118]
[1760238701564,1.55795,3759.6,3757.4,0.00343885]
[1760238701565,0.3621,3759.3,3758.3,0.47849]
[1760238701766,0.47841,3759.1,3757.9,0.3492]
[1760238702069,0.47841,3759.1,3757.7,1.19645]
[1760238702070,0.47836,3759.5,3758.9,0.47842]
[1760238702261,0.4996,3759.7,3758.9,0.79209118]
[1760238702565,0.3621,3759.9,3759.7,0.47831]
[1760238702757,0.3621,3759.9,3759.0,0.3492]
[1760238702957,3.8e-06,3760.0,3759.3,0.79209118]
[1760238703159,0.47834,3759.7,3759.2,0.47839]
[1760238703364,3.8e-06,3760.0,3759.3,0.47837]
[1760238703564,0.84042,3759.8,3759.3,0.47837]
[1760238703760,0.47832,3759.8,3759.3,0.47837]
[1760238703963,0.3621,3759.7,3759.3,0.47837]
[1760238704168,0.3621,3759.6,3759.3,0.47837]
[1760238704363,0.3621,3759.7,3759.3,0.47837]
[1760238704567,3.8e-06,3760.0,3758.8,1.19611]
[1760238704867,0.47831,3759.9,3759.4,0.47835]
[1760238705058,0.3621,3759.8,3759.5,0.47834]
[1760238705259,0.3621,3759.8,3759.6,0.47833]
[1760238705457,3.8e-06,3760.0,3759.7,0.47832]
[1760238705661,3.8e-06,3760.0,3759.9,0.4783]
[1760238706265,3.8e-06,3760.0,3759.9,1.27039118]
[1760238706868,3.8e-06,3760.0,3759.1,1.19601]
[1760238706869,0.3621,3759.9,3759.1,0.4784]
[1760238707068,0.47833,3759.7,3759.4,0.79209118]
[1760238707268,0.3621,3759.5,3759.4,0.79209118]
[1760238707569,3.8e-06,3760.0,3759.5,0.47835]
[1760238707767,3.8e-06,3760.0,3758.2,1.19627]
[1760238707768,3.8e-06,3760.0,3759.7,0.3492]
[1760238707977,3.8e-06,3760.0,3759.8,0.82751]
[1760238708275,3.8e-06,3760.0,3759.9,0.79209118]
[1760238710374,0.1375,3761.8,3761.2,0.47813]
[1760238710575,0.4996,3761.8,3761.2,0.47813]
[1760238711168,0.3621,3761.5,3761.2,0.47813]
[1760238711369,0.00281884,3761.8,3761.7,0.47807]
[1760238711573,0.00281884,3761.8,3761.7,1.27016118]
[1760238711773,0.00281884,3761.8,3761.7,1.61936118]
[1760238711981,0.00281884,3761.8,3761.7,1.27016118]
[1760238712373,0.00281884,3761.8,3761.2,0.00230077]
[1760238712374,0.4781,3761.5,3761.2,0.00230077]
[1760238712576,0.47811,3761.4,3761.2,0.00230077]
[1760238712772,0.47814,3761.2,3760.6,0.4782]
[1760238712967,0.3621,3761.0,3760.6,1.27029118]
[1760238713179,0.3621,3761.6,3761.0,0.79209118]
[1760238713476,0.00281884,3761.8,3761.4,0.4781]
[1760238713778,0.16844225,3763.4,3763.3,0.82707]
[1760238713974,0.64575684,3763.5,3763.3,0.47787]
[1760238714175,0.3621,3764.8,3764.5,0.47771]
[1760238714370,1.38626235,3766.1,3764.1,1.19442]
[1760238714371,0.3621,3766.1,3764.1,1.19442]
[1760238714569,0.3621,3766.1,3764.3,0.3492]
[1760238714570,0.83962,3766.1,3764.3,0.3492]
[1760238714772,0.36514499,3766.1,3764.3,0.0028611]
[1760238714976,0.3621,3765.0,3764.3,0.0028611]
[1760238715175,0.47766,3764.9,3764.3,0.0028611]
[1760238715777,0.47769,3764.8,3764.3,0.0028611]
[1760238715968,0.3621,3764.7,3764.3,0.0028611]
[1760238716171,0.3621,3765.2,3764.5,0.47771]
[1760238716370,0.3621,3765.2,3764.3,0.4806011]
[1760238716570,0.83973,3765.2,3764.5,0.4777]
[1760238717168,0.47765,3765.1,3764.5,0.4777]
[1760238717678,0.3621,3765.2,3764.3,0.0028611]
[1760238717880,0.1424,3765.3,3764.9,0.47766]
[1760238718177,0.3621,3765.2,3764.9,0.47766]
[1760238718475,0.1424,3765.3,3764.8,0.47767]
[1760238718674,0.3621,3765.2,3764.8,0.47767]
[1760238718870,0.3621,3765.2,3764.5,0.47771]
[1760238719076,0.3621,3765.2,3764.3,0.0028611]
[1760238719272,0.00304499,3766.1,3764.4,0.3492]
[1760238719477,0.83968,3765.6,3764.3,0.3520611]
[1760238720277,0.47764,3765.2,3764.3,0.3520611]
[1760238720477,0.47764,3765.2,3764.6,0.47769]
[1760238720676,0.3621,3765.0,3764.4,0.47772]
[1760238720871,0.83976,3765.0,3764.5,0.4777]
[1760238721073,0.3621,3766.0,3764.7,0.3492]
[1760238721276,0.00304499,3766.1,3765.7,0.47756]
[1760238721482,0.3621,3766.0,3765.7,0.47756]
[1760238722381,0.00304499,3766.1,3765.8,0.47754]
[1760238722577,0.00304499,3766.1,3765.3,0.3492]
[1760238722784,0.00304499,3766.1,3765.9,0.82674]
[1760238722978,0.00304499,3766.1,3765.9,0.47754]
[1760238723178,0.00304499,3766.1,3765.9,0.3492]
[1760238723385,0.00304499,3766.1,3765.3,0.3492]
[1760238723386,0.48056499,3766.1,3765.3,0.3492]
[1760238723582,0.00304499,3766.1,3765.9,0.3492]
[1760238723790,0.00304499,3766.1,3766.0,0.3492]
[1760238724981,0.00304499,3766.1,3765.9,0.47753]
[1760238725288,0.00304499,3766.1,3766.0,0.3492]
[1760238725581,0.00304499,3766.1,3765.9,0.47753]
[1760238725786,0.36514499,3766.1,3765.9,0.47753]
[1760238726280,0.36514499,3766.1,3765.4,0.3492]
[1760238726281,1.19386,3765.9,3764.4,0.4836]
[1760238726494,0.00304499,3766.1,3764.4,0.47773]
[1760238726495,0.47768,3764.9,3764.4,0.47773]
[1760238726679,1.1939,3765.8,3764.3,0.0028611]
[1760238726680,0.47769,3764.7,3764.3,0.0028611]
[1760238726875,0.348,3764.4,3764.3,0.0028611]
[1760238727285,0.348,3764.7,3764.3,0.0028611]
[1760238727589,0.4881,3765.6,3764.9,0.47766]
[1760238727887,0.4881,3765.6,3765.1,0.47763]
[1760238728086,0.348,3766.0,3765.7,0.47755]
[1760238728484,0.00304499,3766.1,3765.7,0.47756]
[1760238728783,0.348,3766.0,3765.7,0.47756]
[1760238728988,0.00304499,3766.1,3765.7,0.47756]
[1760238729183,0.47753,3766.0,3765.4,0.47759]
[1760238729382,0.00304499,3766.1,3765.2,0.82063]
[1760238729383,0.47756,3765.8,3765.2,0.82063]
[1760238729683,0.348,3765.9,3763.8,1.3321]
[1760238729885,0.348,3765.9,3765.5,0.47758]
[1760238730083,0.348,3765.9,3765.2,0.343]
[1760238730084,0.82554,3765.9,3765.2,0.343]
[1760238730287,0.47753,3766.0,3765.6,0.47757]
[1760238730485,0.47753,3766.0,3765.6,0.82057]
[1760238730687,0.00304499,3766.1,3765.7,0.343]
[1760238730878,0.47755,3765.9,3765.3,0.47761]
[1760238731078,0.47755,3765.9,3765.5,0.47758]
[1760238731079,0.348,3765.8,3765.5,0.47758]
[1760238731288,0.47755,3765.9,3765.5,0.47758]
[1760238731488,0.47756,3765.8,3765.3,0.47761]
[1760238731692,0.47756,3765.8,3765.4,0.343]
[1760238732085,0.47755,3765.9,3765.5,0.47758]
[1760238732385,0.348,3765.9,3765.5,0.343]
[1760238732691,0.00304499,3766.1,3765.7,0.47756]
[1760238732992,0.348,3766.0,3765.7,0.47756]
[1760238733195,0.00304499,3766.1,3766.0,0.47753]
[1760238733491,0.37,3767.8,3767.1,0.47737]
[1760238733684,0.37,3767.8,3766.8,0.47742]
[1760238733880,0.37,3767.8,3767.2,0.47736]
[1760238734083,0.022,3767.8,3767.7,0.343]
[1760238734285,0.022,3767.8,3766.8,0.1376]
[1760238734486,0.022,3767.8,3767.1,0.47739]
[1760238734688,0.022,3767.8,3767.1,0.00205151]
[1760238734689,0.47731,3767.7,3767.1,0.00205151]
[1760238734886,0.348,3767.4,3767.1,0.00205151]
[1760238735088,0.02475198,3767.8,3767.1,0.00205151]
[1760238735292,0.50205198,3767.8,3767.1,0.00205151]
[1760238735591,0.02475198,3767.8,3767.1,0.47942151]
[1760238735791,0.47737,3767.3,3767.1,0.00205151]
[1760238735987,0.348,3767.2,3767.1,0.00205151]
[1760238736187,0.348,3767.2,3765.7,0.343]
[1760238736387,0.47746,3766.6,3765.8,0.47754]
[1760238736790,0.348,3766.7,3765.7,0.343]
[1760238737091,0.348,3766.7,3765.7,0.34585911]
[1760238737293,0.348,3766.7,3765.7,0.00285911]
[1760238737482,0.47749,3766.3,3765.7,0.00285911]
[1760238737688,0.47751,3766.1,3765.7,0.00285911]
[1760238737888,0.47749,3766.3,3765.7,0.48041911]
[1760238738091,0.348,3766.7,3765.9,0.47753]
[1760238738291,0.348,3766.7,3766.1,0.4775]
[1760238738590,0.47742,3766.9,3766.2,0.47749]
[1760238738988,0.348,3767.3,3766.4,0.47747]
[1760238739190,0.348,3767.3,3766.5,0.47746]
[1760238739391,0.82528,3768.0,3767.2,0.47737]
[1760238739589,0.37275198,3767.8,3767.1,0.47738]
[1760238739790,0.85006198,3767.8,3767.1,0.47738]
[1760238739995,0.47733,3767.6,3766.3,0.343]
[1760238740297,0.82534,3767.5,3766.9,0.47741]
[1760238740487,0.02475198,3767.8,3766.9,0.47741]
[1760238740488,0.47736,3767.4,3766.9,0.47741]
[1760238740689,0.47736,3767.4,3766.9,0.82041]
[1760238740990,0.02475198,3767.8,3766.7,0.1376]
[1760238741190,0.02475198,3767.8,3767.7,0.343]
[1760238741888,0.02475198,3767.8,3767.7,5.343]
[1760238742085,0.02475198,3767.8,3767.6,0.47732]
[1760238742291,0.02475198,3767.8,3766.8,0.343]
[1760238742492,0.47734,3767.5,3766.8,0.343]
[1760238742692,0.47731,3767.7,3766.9,0.47741]
[1760238742887,0.47731,3767.7,3767.0,0.47739]
[1760238743090,0.47733,3767.6,3766.8,0.343]
[1760238743393,0.47735,3767.5,3766.8,0.343]
[1760238743600,0.47735,3767.5,3766.8,0.82041]
[1760238743793,0.47735,3767.5,3766.9,0.4774]
[1760238743992,0.02475198,3767.8,3767.7,0.343]
[1760238744191,0.94569149,3769.1,3767.7,0.343]
[1760238744393,0.47709,3769.5,3768.8,0.47716]
[1760238744701,0.348,3769.6,3768.8,0.47716]
[1760238744997,0.98564707,3769.5,3769.1,0.47712]
[1760238745196,0.0022042,3769.5,3769.2,0.47711]
[1760238745594,0.47709,3769.4,3769.1,0.00307449]
[1760238745797,0.348,3769.3,3769.1,0.00307449]
[1760238745998,0.82512,3769.2,3769.1,0.00307449]
[1760238746195,0.348,3769.2,3769.1,0.00307449]
[1760238746390,0.0022042,3769.5,3769.1,0.48020449]
[1760238746694,0.0022042,3769.5,3769.4,0.82009]
[1760238746899,0.0022042,3769.5,3769.4,5.82009]
[1760238747496,0.348,3771.0,3770.6,0.47694]
[1760238747796,0.47686,3771.3,3770.6,0.343]
[1760238748201,0.47686,3771.3,3770.7,0.47692]
[1760238748396,0.47906084,3771.3,3770.7,0.47692]
[1760238748597,0.00220084,3771.3,3769.6,1.19266]
[1760238748792,0.47689,3771.0,3770.5,0.47695]
[1760238749098,0.47694,3770.6,3769.6,0.343]
[1760238749299,0.348,3771.2,3769.6,0.343]
[1760238749597,0.82488,3771.2,3770.3,0.47697]
[1760238749799,0.47694,3770.7,3770.3,0.343]
[1760238750196,0.00220084,3771.3,3770.9,0.1376]
[1760238750401,1.83058233,3772.9,3772.7,0.47668]
[1760238750602,0.568,3773.8,3773.7,0.47655]
[1760238750798,0.1401,3773.7,3772.9,0.47665]
[1760238750994,0.1401,3773.7,3771.6,0.1376]
[1760238750995,0.1401,3773.7,3773.6,0.47656]
[1760238751299,0.14247694,3773.7,3773.6,0.00277104]
[1760238751694,0.49047694,3773.7,3773.6,0.00277104]
[1760238751896,0.348,3773.5,3770.2,0.1376]
[1760238752103,0.348,3773.3,3771.7,1.19201]
[1760238752306,0.348,3773.3,3772.7,0.47667]
[1760238752597,0.49047694,3773.7,3773.3,0.47659]
[1760238752798,0.348,3773.6,3773.3,0.47659]
[1760238752999,0.14247694,3773.7,3773.3,0.00234703]
[1760238753199,0.14247694,3773.7,3773.4,0.47658]
[1760238753800,0.348,3773.6,3773.4,0.47658]
[1760238754006,0.49047694,3773.7,3773.6,0.47656]
[1760238754298,0.348,3775.0,3773.3,0.00234703]
[1760238754602,0.47636,3775.3,3774.2,0.47648]
[1760238754802,0.348,3775.0,3773.6,0.47656]
[1760238755100,0.348,3774.3,3773.4,0.47658]
[1760238755404,0.348,3773.6,3773.3,0.00234703]
[1760238755696,0.1401,3773.7,3773.3,0.00234703]
[1760238755898,0.00334401,3774.3,3773.3,0.00234703]
[1760238756095,0.348,3774.2,3773.3,0.00234703]
[1760238756303,0.348,3774.2,3773.6,0.47655]
[1760238756503,0.348,3774.2,3773.3,0.00234703]
[1760238756702,0.00334401,3774.3,3773.3,0.00234703]
[1760238757000,0.82226,3773.6,3771.4,1.19211]
[1760238757202,0.3457,3773.5,3772.9,0.47665]
[1760238757391,0.4766,3773.3,3772.6,0.47668]
[1760238757598,0.47668,3772.8,3769.0,2.38572]
[1760238757798,0.3457,3772.6,3772.2,0.47674]
[1760238757998,0.3457,3772.9,3772.2,0.00308358]
[1760238758198,0.3457,3772.9,3769.0,2.38572]
[1760238758199,0.3457,3772.2,3771.9,0.47677]
[1760238758397,0.1414,3772.3,3771.9,0.47677]
[1760238758599,0.1414,3772.3,3770.1,1.1925]
[1760238758806,0.47681,3771.7,3770.7,0.47692]
[1760238758996,3.37173166,3772.2,3770.6,0.47693]
[1760238759203,0.1414,3772.3,3769.8,0.47703]
[1760238759204,0.47693,3770.8,3769.8,0.47703]
[1760238759404,0.4871,3770.4,3770.3,0.47698]
[1760238759597,0.4871,3770.4,3770.1,0.477]
[1760238759902,0.4871,3770.4,3767.2,2.38684]
[1760238759903,0.3457,3770.3,3768.0,1.19318]
[1760238760100,0.3457,3770.3,3769.5,0.47708]
[1760238760301,0.3457,3770.1,3769.5,0.00221755]
[1760238760894,0.3457,3769.9,3769.5,0.00221755]
[1760238761099,0.4871,3769.6,3769.5,0.00221755]
[1760238761405,0.4809,3769.6,3769.5,0.00221755]
[1760238761596,0.4809,3769.6,3766.3,0.14719389]
[1760238761597,5.61287,3769.6,3768.6,0.47719]
[1760238761797,0.3451,3769.5,3768.4,0.47722]
[1760238761997,0.1358,3769.6,3767.2,1.19344]
[1760238761998,0.3451,3768.7,3768.6,0.4772]
[1760238762503,0.3451,3768.7,3768.3,0.47723]
[1760238762696,0.1358,3768.8,3768.3,0.47915741]
[1760238762902,0.3451,3768.6,3768.3,0.00192741]
[1760238763194,0.3451,3768.7,3768.3,0.47915741]
[1760238763500,0.3451,3768.7,3768.3,0.00192741]
[1760238763704,0.82228,3768.7,3768.3,0.00192741]
[1760238763900,0.47721,3768.5,3768.3,0.00192741]
[1760238764105,0.3451,3768.4,3768.3,0.00192741]
[1760238765204,5.82232,3768.4,3768.3,2.741e-05]
[1760238765407,0.3451,3767.8,3767.1,0.47737]
[1760238765906,0.3451,3768.0,3766.3,1.19372]
[1760238766101,0.1358,3768.1,3765.9,2.38771]
[1760238766306,0.1358,3768.1,3766.7,1.19357]
[1760238766603,0.1358,3768.1,3767.9,0.47727]
[1760238766801,0.4809,3768.1,3767.9,0.47727]
[1760238767000,0.1358,3768.1,3767.9,0.47727]
[1760238767201,0.1358,3768.1,3767.8,0.02654069]
[1760238767414,0.47727,3768.0,3767.8,0.02654069]
[1760238767601,0.3451,3767.9,3767.8,0.02654069]
[1760238769213,5.3451,3767.9,3767.8,0.02654069]
[1760238769606,5.3451,3767.9,3766.7,0.47743]
[1760238769607,0.3451,3767.8,3766.7,0.47743]
[1760238769808,0.3451,3767.6,3765.9,0.00234242]
[1760238770113,0.3451,3767.1,3765.9,0.00234242]
[1760238770308,0.4774,3767.0,3766.1,0.4775]
[1760238770611,0.47746,3766.5,3765.9,0.00234242]
[1760238770800,0.3451,3766.6,3765.9,0.00234242]
[1760238771110,0.4809,3766.0,3765.9,0.00234242]
[1760238772006,0.47754,3765.9,3765.1,0.47763]
[1760238772200,0.47756,3765.7,3764.9,0.47766]
[1760238772409,0.3451,3765.9,3764.8,0.47768]
[1760238772608,0.47758,3765.6,3764.8,0.47768]
[1760238772814,0.3451,3765.2,3764.8,0.00234945]
[1760238773016,0.3451,3765.2,3765.1,0.47764]
[1760238773814,0.3451,3765.8,3765.7,0.47756]
[1760238774015,0.1358,3766.0,3765.5,0.47759]
[1760238774213,0.47756,3765.8,3764.8,0.00234945]
[1760238774416,0.1358,3765.3,3764.8,0.00234945]
[1760238774612,0.1358,3765.3,3764.9,0.47765]
[1760238774917,0.1358,3765.3,3765.0,0.47764]
[1760238775110,0.3451,3765.0,3764.8,0.00234945]
[1760238775317,0.3451,3765.2,3764.8,0.00234945]
[1760238776012,0.1358,3765.3,3764.8,0.00234945]
[1760238776208,0.3451,3765.2,3764.8,0.00234945]
[1760238776409,0.82274,3765.2,3764.8,0.00234945]
[1760238776815,0.3451,3764.9,3764.8,0.00234945]
[1760238777017,0.34770309,3764.9,3764.8,0.00234945]
[1760238777214,0.3451,3764.3,3763.0,1.19476]
[1760238777517,0.3451,3764.3,3764.1,0.47776]
[1760238777811,0.1358,3764.4,3763.0,1.19476]
[1760238778214,0.3451,3764.3,3763.9,0.47778]
[1760238778416,0.3451,3764.3,3763.1,1.19474]
[1760238778717,0.3451,3764.3,3763.8,0.47779]
[1760238778913,0.1358,3764.4,3764.0,0.47777]
[1760238779122,0.1358,3764.4,3763.1,1.19474]
[1760238779415,0.1358,3764.4,3763.0,0.00201498]
[1760238779416,0.3451,3763.1,3763.0,0.00201498]
[1760238780416,0.1358,3763.8,3763.0,0.00201498]
[1760238780722,0.1358,3763.8,3763.6,0.47782]
[1760238781116,0.1358,3763.8,3763.4,0.47785]
[1760238781321,0.1358,3763.2,3763.1,0.47789]
[1760238781718,0.1358,3763.8,3763.1,5.0]
[1760238781925,0.1358,3763.8,3763.7,0.47782]
[1760238782523,0.3451,3764.1,3764.0,0.47778]
[1760238782921,0.3451,3764.8,3764.7,0.47769]
[1760238783322,0.3451,3764.8,3764.5,0.47771]
[1760238783521,0.00260309,3764.9,3764.5,0.47771]
[1760238783718,0.00260309,3764.9,3763.0,0.00201498]
[1760238783917,0.1358,3763.8,3763.7,0.4778]
[1760238784125,0.4809,3763.8,3763.7,0.4778]
[1760238784326,0.3451,3764.3,3763.9,0.47778]
[1760238785025,0.1358,3764.4,3764.0,0.47777]
[1760238785227,0.3451,3764.3,3763.0,0.00201498]
[1760238785519,0.1358,3764.4,3763.9,0.47778]
[1760238785724,0.1358,3764.4,3763.2,1.1947]
[1760238785725,0.1358,3764.4,3764.0,0.47777]
[1760238786116,0.1358,3764.4,3763.0,0.00201498]
[1760238786117,0.3541,3763.7,3763.0,0.00201498]
[1760238786329,0.3541,3763.1,3763.0,0.47992498]
[1760238786823,0.3541,3764.3,3764.2,0.47775]
[1760238788322,0.3541,3764.3,3764.1,0.47776]
[1760238788534,0.3541,3764.3,3764.2,0.47775]
[1760238789224,0.3541,3764.2,3763.0,0.00201498]
[1760238789429,0.1358,3764.4,3763.0,0.00201498]
[1760238789430,0.61354,3764.4,3763.5,0.47783]
[1760238789727,0.3541,3763.7,3763.0,0.00201498]
[1760238790031,0.3541,3763.7,3763.6,0.47783]
[1760238790825,0.1412,3763.2,3763.0,0.00201498]
[1760238791031,0.3541,3763.1,3763.0,0.47992498]
[1760238791432,0.4953,3763.8,3763.7,0.47782]
[1760238792430,0.1412,3763.8,3763.0,0.00201498]
[1760238792635,0.3541,3763.7,3763.6,0.47782]
[1760238794130,0.1412,3763.2,3763.0,0.47991498]
[1760238794333,0.1412,3763.2,3763.0,0.00201498]
[1760238794334,0.3541,3763.1,3763.0,0.00201498]
[1760238794541,0.1412,3762.6,3762.1,0.47801]
[1760238794727,0.1412,3762.6,3762.0,0.47802]
[1760238795030,0.3541,3762.5,3761.8,0.47805]
[1760238795230,0.3541,3761.9,3761.7,0.47806]
[1760238795433,0.35693034,3761.9,3761.7,0.00338581]
[1760238795735,0.1412,3764.4,3764.0,0.47777]
[1760238795928,0.1412,3764.4,3761.7,0.00338581]
[1760238795929,0.1412,3764.4,3762.7,1.19486]
[1760238796128,0.1412,3763.8,3762.4,1.19496]
[1760238796431,0.3541,3763.7,3763.6,0.47782]
[1760238796625,0.00276002,3763.7,3763.3,0.47786]
[1760238796830,0.00276002,3763.7,3763.1,0.47789]
[1760238797035,0.00276002,3763.7,3763.2,0.47787]
[1760238797237,0.3541,3763.6,3763.2,0.47787]
[1760238797441,0.00276002,3763.7,3763.2,0.47787]
[1760238797737,0.4953,3763.2,3763.1,0.47789]
[1760238798832,2e-08,3763.7,3763.5,0.47783]
[1760238799032,0.3541,3764.9,3763.5,1.1946]
[1760238799231,0.3541,3764.9,3763.2,1.38161747]
[1760238799440,0.3541,3764.9,3763.3,1.38161747]
[1760238799737,0.3541,3764.9,3763.2,1.38161747]
[1760238799939,0.00195682,3764.9,3763.5,1.19461]
[1760238800235,0.00195682,3764.9,3764.6,0.4777]
[1760238800438,0.35605682,3764.9,3764.8,0.47768]
[1760238800835,0.3541,3764.8,3764.6,0.48014343]
[1760238801035,0.3541,3764.8,3764.6,0.00244343]
[1760238801440,0.3541,3764.8,3764.7,0.47768]
[1760238801742,0.00195682,3764.9,3764.7,0.47768]
[1760238801936,0.3541,3764.8,3764.7,0.47768]
[1760238802236,0.00195682,3764.9,3764.7,0.47768]
[1760238802636,0.00195682,3764.9,3764.7,5.47768]
[1760238803139,0.3541,3764.8,3764.7,0.47768]
[1760238804239,0.00195682,3764.9,3764.7,0.47768]
[1760238806345,0.3541,3764.8,3764.7,0.47768]
[1760238807042,0.3541,3764.8,3764.6,0.48013343]
[1760238807240,0.3541,3764.8,3764.7,0.47768]
[1760238808736,5.3541,3764.8,3764.6,0.00244343]
[1760238808936,0.3541,3764.7,3764.6,0.00244343]
[1760238809345,0.3541,3764.7,3764.2,0.47775]
[1760238809346,0.3541,3764.3,3764.2,0.47775]
[1760238809545,0.3541,3764.3,3763.9,0.47778]
[1760238809846,0.1412,3764.4,3763.9,0.47779]
[1760238810043,0.4953,3764.0,3762.9,1.19478]
[1760238810344,0.3541,3763.9,3763.8,0.47779]
[1760238813247,0.4953,3764.4,3764.3,0.47774]
[1760238813740,0.4953,3764.4,3762.9,0.00185946]
[1760238813946,0.3541,3764.3,3764.2,0.47775]
[1760238814343,0.00195682,3764.9,3764.6,0.47769]
[1760238814641,0.3541,3764.7,3764.6,0.47769]
[1760238814843,0.1412,3764.5,3763.1,1.19472]
[1760238815142,0.00195682,3764.9,3764.8,0.47768]
[1760238815342,0.00195682,3764.9,3763.4,7.16778]
[1760238815343,0.3541,3765.4,3765.2,0.47762]
[1760238815647,0.3541,3765.4,3765.3,0.4776]
[1760238816243,0.35638999,3765.4,3765.3,0.4776]
[1760238816448,0.3651,3765.3,3764.5,1.19429]
[1760238816642,0.00228999,3765.4,3764.6,1.19426]
[1760238816844,0.3651,3765.3,3764.6,1.19426]
[1760238817844,0.3651,3765.3,3763.9,1.19446]
[1760238818043,0.3651,3765.3,3765.1,0.47763]
[1760238818252,0.00228999,3765.4,3765.2,0.47762]
[1760238818549,0.3651,3765.3,3765.2,0.47762]
[1760238820643,0.3651,3765.3,3763.5,2.3892]
[1760238820644,0.5084,3765.0,3764.9,0.47766]
[1760238820852,0.3651,3764.9,3764.1,1.19441]
[1760238821152,0.3651,3764.9,3764.8,0.47767]
[1760238821749,0.3328,3764.9,3763.6,1.19456]
[1760238821945,0.3328,3764.9,3763.5,1.84566115]
[1760238821946,0.1394,3764.5,3764.1,0.47776]
[1760238822844,0.1394,3764.5,3764.2,0.47775]
[1760238823447,0.1394,3764.5,3764.0,0.47777]
[1760238823944,0.3328,3764.4,3763.4,1.19464]
[1760238824150,0.3328,3764.4,3763.0,0.4779]
[1760238824151,0.4722,3764.0,3763.9,0.47778]
[1760238824686,0.3328,3763.9,3763.5,0.47784]
[1760238824848,0.1394,3764.0,3763.5,0.47784]
[1760238825454,0.1394,3764.0,3762.9,0.00185946]
[1760238825455,0.4722,3763.0,3762.9,0.00185946]
[1760238827249,0.1394,3763.5,3762.9,0.00185946]
[1760238827454,0.1394,3763.5,3763.4,0.47786]
[1760238827455,0.4722,3763.5,3763.4,0.47786]
[1760238827653,0.3328,3763.5,3763.4,0.47786]
[1760238827954,0.4722,3763.5,3763.4,0.47786]
[1760238829259,0.4722,3764.0,3763.9,0.47779]
[1760238831153,0.1394,3764.0,3763.7,0.47781]
[1760238831550,0.3328,3763.9,3762.9,0.00185946]
[1760238831849,0.3328,3763.9,3763.8,0.4778]
[1760238832654,0.3328,3763.9,3762.9,0.00185946]
[1760238833758,0.3328,3763.4,3763.3,0.47786]
[1760238835057,0.3328,3763.4,3763.2,0.47787]
[1760238835355,0.4722,3763.5,3763.4,0.47786]
[1760238836552,0.1394,3763.0,3762.9,0.00185946]
[1760238836854,0.4722,3763.0,3762.9,0.00185946]
[1760238838060,5.4722,3763.0,3762.9,0.00185946]
[1760238839158,0.4722,3763.0,3762.9,0.00185946]
[1760238839355,0.3328,3763.4,3763.2,0.47787]
[1760238839760,0.4722,3763.5,3763.4,0.47786]
[1760238840256,0.4722,3763.0,3762.9,0.47977946]
[1760238840456,0.3328,3763.4,3763.3,0.47787]
[1760238840653,0.61725,3763.5,3762.9,0.00185946]
[1760238840847,0.4722,3763.0,3762.9,0.00185946]
[1760238841050,0.4722,3763.0,3762.0,1.84566115]
[1760238841051,0.3328,3762.3,3762.0,1.84566115]
[1760238841246,0.3328,3761.9,3761.8,0.47806]
[1760238841852,0.4722,3761.5,3761.2,0.47813]
[1760238842051,0.3328,3761.4,3761.3,0.47811]
[1760238842256,0.00341735,3761.5,3761.3,0.47811]
[1760238842656,0.4722,3762.5,3762.3,0.47799]
[1760238842859,0.4722,3763.0,3761.7,1.19517]
[1760238843048,0.1394,3763.0,3762.8,0.47792]
[1760238843248,0.4722,3763.5,3763.2,0.47788]
[1760238843454,0.4722,3763.5,3763.0,0.4779]
[1760238843455,0.3328,3763.4,3763.0,0.4779]
[1760238843654,0.3328,3763.3,3763.0,0.4779]
[1760238843855,0.3328,3763.3,3762.7,0.47793]
[1760238843856,0.1394,3763.0,3762.7,0.47793]
[1760238844056,0.3328,3762.9,3762.8,0.47792]
[1760238845052,0.3328,3763.3,3763.2,0.47788]
[1760238845256,0.3328,3763.3,3763.0,0.4779]
[1760238845452,0.00258677,3763.4,3763.0,0.4779]
[1760238845857,0.3328,3763.3,3763.0,0.4779]
[1760238846051,0.3414,3763.3,3763.0,0.4779]
[1760238846251,0.00258677,3763.4,3761.8,1.19513]
[1760238846453,0.47795,3762.7,3762.0,0.47803]
[1760238846762,0.1422,3762.5,3762.1,0.47801]